bitfinex-derivatives/quotes_BTCF0:USTF0_20210706
["timestamp","ask_amount","ask_price","bid_price","bid_amount"]
[1625593663918,2.74409421,33809.0,33808.0,7.57586305]
[1625593664041,2.74409421,33809.0,33808.0,8.93908136]
[1625593664042,1.69971164,33809.0,33808.0,8.93908136]
[1625593664519,1.00340646,33809.0,33808.0,8.93908136]
[1625593665482,0.26142928,33810.0,33808.0,8.93908136]
[1625593665722,0.08719241,33811.0,33809.0,4.76443735]
[1625593665961,0.08719241,33811.0,33810.0,4.76882217]
[1625593666203,1.21866732,33811.0,33810.0,4.76882217]
[1625593666688,1.21866732,33811.0,33810.0,3.40745498]
[1625593666923,2.2631479,33811.0,33810.0,3.40745498]
[1625593667890,3.4818076,33811.0,33810.0,1.1952333]
[1625593668009,3.49716894,33811.0,33810.0,1.19119629]
[1625593668129,3.49716894,33811.0,33810.0,0.5105127]
[1625593668130,4.88992494,33811.0,33810.0,0.5105127]
[1625593668250,8.68432494,33811.0,33810.0,0.5105127]
[1625593668851,8.68432494,33811.0,33810.0,0.51242916]
[1625593668969,4.88992494,33811.0,33810.0,0.51242916]
[1625593669090,4.88992494,33811.0,33810.0,0.8543311]
[1625593669091,5.13050038,33811.0,33810.0,0.8543311]
[1625593669451,5.13050038,33811.0,33810.0,1.19652453]
[1625593669997,3.73774438,33811.0,33810.0,2.2275709]
[1625593670351,3.72238304,33811.0,33810.0,2.2275709]
[1625593670474,2.50372334,33811.0,33810.0,3.42572437]
[1625593670834,1.45924276,33811.0,33810.0,4.79558968]
[1625593671073,1.45924276,33811.0,33810.0,5.03616512]
[1625593671314,0.7628863,33811.0,33810.0,5.03616512]
[1625593671556,1.4592062,33811.0,33810.0,5.03616512]
[1625593672218,0.7628863,33811.0,33810.0,5.03616512]
[1625593672459,1.45920562,33811.0,33810.0,5.03616512]
[1625593672938,0.7628863,33811.0,33810.0,5.03616512]
[1625593673670,0.76297008,33811.0,33810.0,5.03616512]
[1625593674142,0.58878053,33811.0,33810.0,5.03616512]
[1625593674387,0.76297178,33811.0,33810.0,5.03616512]
[1625593674569,0.58878053,33811.0,33810.0,5.03616512]
[1625593674685,1.11099962,33811.0,33810.0,5.03616512]
[1625593674927,0.76279453,33811.0,33810.0,5.03616512]
[1625593675287,0.52221909,33811.0,33810.0,5.03616512]
[1625593675407,0.87040183,33811.0,33810.0,5.03616512]
[1625593676128,0.52235973,33811.0,33810.0,5.03616512]
[1625593676310,0.87037153,33811.0,33810.0,5.03616512]
[1625593677751,0.52234469,33811.0,33810.0,5.03616512]
[1625593677990,0.26132686,33811.0,33810.0,5.03616512]
[1625593678411,0.26131993,33812.0,33810.0,5.03616512]
[1625593678711,0.08716464,33812.0,33811.0,4.803994]
[1625593679192,0.60941942,33813.0,33811.0,5.04456944]
[1625593679434,0.26128208,33812.0,33811.0,0.24459636]
[1625593679552,0.60937646,33812.0,33811.0,5.04181037]
[1625593679792,0.52222445,33812.0,33811.0,5.04583135]
[1625593680092,0.87015451,33812.0,33811.0,5.04583135]
[1625593680393,0.52206013,33812.0,33811.0,5.04583135]
[1625593680633,1.21810172,33812.0,33811.0,3.67404994]
[1625593681354,1.21810172,33812.0,33811.0,5.04710805]
[1625593681596,0.52206013,33812.0,33811.0,5.04710805]
[1625593681836,1.21806392,33812.0,33811.0,5.04710805]
[1625593682256,0.52206013,33812.0,33811.0,5.04710805]
[1625593682495,1.21806646,33812.0,33811.0,3.67404994]
[1625593684119,0.52206013,33812.0,33811.0,5.04835951]
[1625593684604,0.52206013,33812.0,33811.0,3.67404994]
[1625593684842,0.52206013,33812.0,33811.0,5.04811753]
[1625593685504,0.52206013,33812.0,33811.0,3.67404994]
[1625593686165,1.21795615,33812.0,33811.0,3.67404994]
[1625593687607,0.52206013,33812.0,33811.0,3.67404994]
[1625593688087,0.52206013,33812.0,33811.0,5.04797148]
[1625593688447,0.26122918,33812.0,33811.0,5.04797148]
[1625593688690,0.26123563,33814.0,33811.0,5.04797148]
[1625593688933,0.26120206,33815.0,33813.0,4.80439448]
[1625593689051,0.26120206,33815.0,33813.0,5.09980448]
[1625593689172,0.08712532,33815.0,33814.0,4.80437784]
[1625593689291,0.08712532,33815.0,33814.0,10.35575328]
[1625593689411,0.08712532,33815.0,33814.0,10.35977644]
[1625593689652,0.2612061,33815.0,33814.0,10.35977644]
[1625593690552,0.60918923,33815.0,33814.0,10.35977644]
[1625593690855,0.2612061,33815.0,33814.0,5.04897644]
[1625593691099,0.52203475,33815.0,33814.0,5.04897644]
[1625593691334,0.34795397,33815.0,33814.0,3.67629706]
[1625593691453,4.48635397,33815.0,33814.0,3.67629706]
[1625593691581,5.35627793,33815.0,33814.0,3.67629706]
[1625593691818,6.40008293,33815.0,33814.0,3.67629706]
[1625593692055,6.40008293,33815.0,33814.0,2.4752026]
[1625593692895,6.41549737,33815.0,33814.0,2.4752026]
[1625593693134,6.40008293,33815.0,33814.0,2.4752026]
[1625593693677,6.41549744,33815.0,33814.0,2.4752026]
[1625593694337,6.41549744,33815.0,33814.0,0.2445986]
[1625593694460,6.41549744,33815.0,33814.0,2.47953189]
[1625593696086,7.63414024,33815.0,33814.0,3.6833421]
[1625593696325,6.41549744,33815.0,33814.0,3.6833421]
[1625593696686,6.40008293,33815.0,33814.0,3.6833421]
[1625593697771,7.61903982,33815.0,33814.0,3.6833421]
[1625593698011,6.40008293,33815.0,33814.0,3.6833421]
[1625593698251,6.40008293,33815.0,33814.0,5.05922422]
[1625593698432,6.40008293,33815.0,33814.0,3.6833421]
[1625593699034,6.41549744,33815.0,33814.0,3.6833421]
[1625593699153,6.41549744,33815.0,33814.0,5.05937002]
[1625593699816,6.41549744,33815.0,33814.0,3.6833421]
[1625593705281,6.74589744,33815.0,33814.0,3.6833421]
[1625593706302,3.82637062,33815.0,33814.0,3.6833421]
[1625593706423,3.49597062,33815.0,33814.0,3.6833421]
[1625593706543,1.21787793,33815.0,33814.0,5.059638]
[1625593706785,0.08721867,33815.0,33814.0,6.60691794]
[1625593707084,0.60982336,33816.0,33814.0,6.60691794]
[1625593707206,0.26147096,33816.0,33815.0,4.81270583]
[1625593707325,0.26147096,33816.0,33815.0,4.81672924]
[1625593707566,0.26147096,33816.0,33815.0,5.05730468]
[1625593708167,0.60978972,33816.0,33815.0,5.05730468]
[1625593710210,0.52258201,33816.0,33815.0,5.05730468]
[1625593710809,0.60978034,33816.0,33815.0,5.05730468]
[1625593711049,0.26146158,33816.0,33815.0,5.05730468]
[1625593713150,0.08719833,33816.0,33815.0,6.60297015]
[1625593713631,0.60975997,33816.0,33815.0,5.05730468]
[1625593714472,0.52256164,33816.0,33815.0,5.05730468]
[1625593716393,0.3483164,33816.0,33815.0,5.05730468]
[1625593716633,0.87079683,33816.0,33815.0,5.05730468]
[1625593717534,0.3483164,33816.0,33815.0,5.05730468]
[1625593717774,0.52258702,33816.0,33815.0,5.05730468]
[1625593718496,0.3483164,33816.0,33815.0,5.05730468]
[1625593719339,0.52260458,33816.0,33815.0,5.05730468]
[1625593719818,0.52260458,33816.0,33815.0,9.41120468]
[1625593719999,1.21932647,33816.0,33815.0,9.41120468]
[1625593720300,0.52260458,33816.0,33815.0,9.41120468]
[1625593720784,1.21938474,33816.0,33815.0,9.41120468]
[1625593722887,2.26454126,33816.0,33815.0,9.41120468]
[1625593732210,2.27997429,33816.0,33815.0,9.41120468]
[1625593733227,2.26454126,33816.0,33815.0,9.41120468]
[1625593733470,1.21938474,33816.0,33815.0,9.41120468]
[1625593733830,2.26515553,33816.0,33815.0,9.41120468]
[1625593733949,6.85475553,33816.0,33815.0,9.41120468]
[1625593734611,6.87018837,33816.0,33815.0,9.41120468]
[1625593735332,2.28058837,33816.0,33815.0,9.41120468]
[1625593735691,2.26515553,33816.0,33815.0,9.41120468]
[1625593736472,2.28058793,33816.0,33815.0,9.41120468]
[1625593740077,1.21938474,33816.0,33815.0,9.41120468]
[1625593740316,0.26175857,33816.0,33815.0,10.94555099]
[1625593740557,0.08730827,33817.0,33815.0,10.94555099]
[1625593740676,1.04578229,33820.0,33815.0,10.94555099]
[1625593740798,0.17443936,33819.0,33816.0,6.30248461]
[1625593740920,1.04576486,33821.0,33816.0,6.30248461]
[1625593740921,0.34063346,33825.0,33816.0,6.30650277]
[1625593741038,1.22015259,33824.0,33818.0,6.63493471]
[1625593741280,0.24057544,33833.0,33823.0,1.53062872]
[1625593741398,0.24057544,33833.0,33823.0,1.83954872]
[1625593741518,0.24057544,33833.0,33825.0,1.5298678]
[1625593741637,0.01542888,33832.0,33825.0,1.5298678]
[1625593741757,0.01542888,33832.0,33826.0,1.52961723]
[1625593741879,0.01542888,33832.0,33826.0,1.5336346]
[1625593741998,0.01542888,33832.0,33831.0,4.4858]
[1625593742117,0.01542888,33832.0,33831.0,4.7703]
[1625593742239,0.01542888,33832.0,33831.0,5.49202632]
[1625593742481,0.01542888,33832.0,33831.0,7.02237281]
[1625593742600,2.888e-05,33832.0,33831.0,7.02237281]
[1625593742719,1.56813583,33842.0,33831.0,7.02237281]
[1625593742840,2.7319514,33859.0,33831.0,7.02237281]
[1625593742841,1.56555247,33845.0,33831.0,8.52237281]
[1625593742962,0.01537822,33841.0,33832.0,0.00403246]
[1625593743080,1.56536041,33849.0,33835.0,1.52038793]
[1625593743199,0.01537748,33844.0,33835.0,2.52038793]
[1625593743320,0.01537748,33844.0,33837.0,1.5195261]
[1625593743442,1.56529332,33851.0,33838.0,0.5]
[1625593743561,1.56524677,33852.0,33839.0,1.51885814]
[1625593743683,1.56524677,33852.0,33851.0,4.0616]
[1625593743801,1.56517867,33853.0,33851.0,4.29694]
[1625593744040,1.56518027,33854.0,33851.0,4.29694]
[1625593744164,1.56518027,33854.0,33853.0,0.72172632]
[1625593744522,1.58046268,33854.0,33853.0,0.72172632]
[1625593744642,0.01528241,33854.0,33853.0,0.72172632]
[1625593744883,0.01528241,33854.0,33853.0,0.72579013]
[1625593745363,0.0501644,33863.0,33853.0,0.72579013]
[1625593745723,0.24057544,33864.0,33853.0,0.72172632]
[1625593746205,0.24057544,33864.0,33863.0,0.48115088]
[1625593746326,1.56147521,33866.0,33865.0,5.0391]
[1625593746565,1.55806827,33869.0,33865.0,5.0391]
[1625593746804,0.24057544,33873.0,33863.0,0.48115088]
[1625593746805,1.79864148,33867.0,33863.0,0.48115088]
[1625593746925,1.79864148,33867.0,33863.0,0.24057544]
[1625593747048,1.55810005,33865.0,33858.0,0.24057544]
[1625593747287,1.55816908,33863.0,33858.0,0.24057544]
[1625593747407,1.89829908,33863.0,33858.0,0.24057544]
[1625593747527,1.55821211,33862.0,33858.0,0.24057544]
[1625593748009,1.89827967,33863.0,33858.0,0.24057544]
[1625593748247,0.24057544,33859.0,33858.0,0.24057544]
[1625593750110,0.24057544,33859.0,33853.0,0.24057544]
[1625593750351,0.48115088,33854.0,33853.0,0.24057544]
[1625593750470,0.74283088,33854.0,33853.0,0.24057544]
[1625593750711,0.74283088,33854.0,33849.0,0.24057544]
[1625593750832,0.74283088,33854.0,33843.0,0.24057544]
[1625593751191,4.3247,33848.0,33843.0,0.24057544]
[1625593752335,0.48115088,33844.0,33843.0,0.24057544]
[1625593752454,0.82346088,33844.0,33843.0,0.24057544]
[1625593753717,0.82346088,33844.0,33839.0,0.24057544]
[1625593753901,0.82346088,33844.0,33835.0,0.24057544]
[1625593754378,0.48115088,33836.0,33835.0,0.24057544]
[1625593754499,0.78412088,33836.0,33835.0,0.24057544]
[1625593755159,0.78412088,33836.0,33826.0,0.24057544]
[1625593756422,0.24057544,33827.0,33826.0,0.24057544]
[1625593756540,0.78412088,33836.0,33826.0,0.24057544]
[1625593758402,0.78412088,33836.0,33835.0,0.48115088]
[1625593759843,0.78412088,33836.0,33835.0,0.24057544]
[1625593766748,0.78412088,33836.0,33829.0,4.8974]
[1625593767889,0.48115088,33836.0,33829.0,4.8974]
[1625593768489,0.48115088,33836.0,33833.0,0.24057544]
[1625593768609,0.48115088,33836.0,33833.0,0.45694544]
[1625593769812,0.48115088,33836.0,33833.0,0.24057544]
[1625593771498,0.48115088,33836.0,33829.0,4.8974]
[1625593771619,0.76547088,33836.0,33827.0,1.00864229]
[1625593771978,0.76547088,33836.0,33826.0,0.24057544]
[1625593772518,0.48115088,33827.0,33826.0,0.24057544]
[1625593772638,0.81420088,33827.0,33826.0,0.24057544]
[1625593772997,0.81420088,33827.0,33826.0,3.91747544]
[1625593773239,0.81420088,33827.0,33826.0,4.9244062]
[1625593773357,0.33305,33827.0,33826.0,4.9244062]
[1625593773664,0.48115088,33836.0,33826.0,4.9244062]
[1625593773903,0.48115088,33836.0,33827.0,1.00597242]
[1625593774142,0.48115088,33836.0,33826.0,4.92302749]
[1625593774383,0.48115088,33836.0,33828.0,1.0048925]
[1625593774505,0.48115088,33836.0,33834.0,0.24057544]
[1625593777331,0.48115088,33836.0,33835.0,0.00407256]
[1625593780458,0.24057544,33836.0,33835.0,0.00407256]
[1625593780573,0.24057544,33836.0,33835.0,0.244648]
[1625593781662,0.48115088,33842.0,33835.0,0.244648]
[1625593781784,1.27697797,33849.0,33835.0,0.244648]
[1625593781903,1.2091075,33851.0,33835.0,1.24579994]
[1625593781904,1.03633272,33851.0,33835.0,1.24579994]
[1625593782142,0.01525919,33848.0,33838.0,1.0011027]
[1625593782262,0.01525919,33848.0,33847.0,3.7172]
[1625593782382,0.01525865,33850.0,33847.0,4.03884]
[1625593782623,0.01525865,33850.0,33849.0,0.72172632]
[1625593782741,0.24057544,33854.0,33849.0,0.72172632]
[1625593782982,0.01525816,33850.0,33849.0,0.72172632]
[1625593783227,0.01525836,33853.0,33849.0,0.72172632]
[1625593783827,0.01525836,33853.0,33847.0,3.7172]
[1625593783948,0.01525836,33853.0,33839.0,1.00184036]
[1625593784069,1.05148761,33853.0,33838.0,4.5088]
[1625593784309,1.0362789,33851.0,33839.0,0.00407174]
[1625593784428,1.2500089,33851.0,33839.0,0.00407174]
[1625593784552,1.05152844,33850.0,33839.0,0.00407174]
[1625593784669,0.24057544,33844.0,33843.0,0.24057544]
[1625593784791,0.53965544,33844.0,33843.0,0.24057544]
[1625593786598,0.78023088,33844.0,33843.0,0.24057544]
[1625593786717,0.48115088,33844.0,33843.0,0.24057544]
[1625593787380,5.91670277,33852.0,33843.0,0.24057544]
[1625593787740,0.0152585,33851.0,33843.0,0.24057544]
[1625593788099,0.0152585,33851.0,33844.0,0.00407121]
[1625593788700,0.0152585,33851.0,33850.0,0.24057544]
[1625593788822,0.01525807,33853.0,33850.0,0.24057544]
[1625593789062,0.24057544,33854.0,33850.0,0.24057544]
[1625593789363,0.01525774,33853.0,33850.0,0.24057544]
[1625593790683,0.25583318,33853.0,33850.0,0.24057544]
[1625593791225,0.24057544,33853.0,33850.0,0.24057544]
[1625593793212,1.03681403,33855.0,33850.0,0.24057544]
[1625593793335,1.55593948,33861.0,33850.0,0.24057544]
[1625593793336,1.0372339,33859.0,33850.0,0.58509544]
[1625593793694,1.0372339,33859.0,33857.0,4.8703]
[1625593793815,0.24057544,33860.0,33857.0,5.10209]
[1625593794717,0.24057544,33860.0,33859.0,0.48115088]
[1625593802539,0.24057544,33860.0,33859.0,0.24057544]
[1625593802896,0.93321477,33860.0,33859.0,0.24057544]
[1625593803138,0.24057544,33860.0,33859.0,0.24057544]
[1625593803918,0.24057544,33860.0,33859.0,0.46738544]
[1625593804041,0.69236993,33864.0,33859.0,0.46738544]
[1625593804762,0.69236993,33864.0,33863.0,0.24057544]
[1625593804881,0.93264244,33865.0,33863.0,0.24057544]
[1625593806925,0.24057544,33865.0,33863.0,0.24057544]
[1625593816845,0.69081755,33872.0,33864.0,0.24057544]
[1625593818349,0.69062358,33873.0,33864.0,0.24057544]
[1625593818588,0.69063181,33872.0,33864.0,0.24057544]
[1625593818827,0.69063181,33872.0,33871.0,0.24057544]
[1625593819308,0.70583596,33872.0,33871.0,0.24057544]
[1625593819728,1.74151759,33872.0,33871.0,0.24057544]
[1625593820511,0.70583596,33872.0,33871.0,0.24057544]
[1625593820634,0.70583596,33872.0,33871.0,0.56473544]
[1625593820871,0.9464114,33872.0,33871.0,0.56473544]
[1625593824899,0.9464114,33872.0,33871.0,0.80531088]
[1625593826278,0.25577959,33872.0,33871.0,0.80531088]
[1625593826578,0.94647178,33872.0,33871.0,0.80531088]
[1625593828205,0.94647178,33872.0,33871.0,0.48115088]
[1625593828206,1.17252178,33872.0,33871.0,0.48115088]
[1625593828443,1.17252178,33872.0,33864.0,0.24057544]
[1625593828562,1.17252178,33872.0,33859.0,0.67124497]
[1625593828683,1.17252178,33872.0,33858.0,1.00686746]
[1625593828684,2.70860022,33872.0,33858.0,0.67133791]
[1625593828928,0.72172632,33859.0,33856.0,0.67202098]
[1625593829045,0.95108632,33859.0,33856.0,0.67202098]
[1625593829163,0.95108632,33859.0,33854.0,0.67245965]
[1625593829402,0.95108632,33859.0,33857.0,0.00408222]
[1625593829642,0.95108632,33859.0,33854.0,0.67679965]
[1625593829884,0.95108632,33859.0,33855.0,0.00408273]
[1625593830244,0.01520424,33858.0,33855.0,0.00408273]
[1625593830486,0.95108632,33859.0,33854.0,0.67629376]
[1625593830606,0.72172632,33859.0,33858.0,4.0242]
[1625593830965,0.72172632,33859.0,33858.0,4.02828262]
[1625593831086,0.72172632,33859.0,33858.0,4.29665262]
[1625593831212,0.72172632,33859.0,33858.0,4.38575262]
[1625593831326,0.72172632,33859.0,33858.0,4.29665262]
[1625593831448,0.72172632,33859.0,33858.0,5.47131554]
[1625593831686,0.72172632,33859.0,33858.0,6.4785438]
[1625593832887,0.72172632,33859.0,33858.0,6.71911924]
[1625593833250,0.72172632,33859.0,33858.0,7.89354894]
[1625593834808,0.48115088,33859.0,33858.0,7.89354894]
[1625593835048,0.48115088,33859.0,33858.0,9.23631356]
[1625593835288,0.48115088,33859.0,33858.0,7.89354894]
[1625593835773,0.48115088,33859.0,33858.0,9.23770958]
[1625593841665,0.48115088,33859.0,33858.0,10.75052811]
[1625593842386,0.48115088,33859.0,33858.0,9.23770958]
[1625593842928,0.48115088,33859.0,33858.0,10.74687059]
[1625593843530,0.24057544,33869.0,33858.0,10.74687059]
[1625593843771,1.21332856,33871.0,33858.0,10.74687059]
[1625593843890,1.21332856,33871.0,33868.0,1.17298337]
[1625593843891,0.52002271,33871.0,33868.0,1.17298337]
[1625593844010,0.01518986,33870.0,33868.0,1.45499337]
[1625593844132,0.01518986,33870.0,33869.0,0.50259873]
[1625593844254,0.01518986,33870.0,33869.0,0.50668408]
[1625593844617,1.21350211,33874.0,33869.0,2.18068212]
[1625593844853,0.52003816,33877.0,33873.0,1.17030603]
[1625593844974,0.52003816,33877.0,33873.0,1.89203235]
[1625593845093,0.76061016,33879.0,33876.0,0.50130561]
[1625593845214,0.76061016,33879.0,33876.0,0.75332561]
[1625593845335,0.52003472,33879.0,33876.0,0.75332561]
[1625593845575,0.52001962,33881.0,33878.0,0.50095585]
[1625593845695,0.31601962,33881.0,33878.0,0.50095585]
[1625593845815,0.31601962,33881.0,33877.0,0.67202507]
[1625593845816,0.76047642,33886.0,33880.0,2.16736193]
[1625593845932,0.76047642,33886.0,33880.0,7.45706193]
[1625593846055,0.51990098,33886.0,33880.0,7.45706193]
[1625593846293,0.01920098,33886.0,33881.0,0.5040833]
[1625593846416,0.01554453,33887.0,33881.0,1.50411505]
[1625593846653,1.21285686,33890.0,33881.0,1.50411505]
[1625593846778,1.03939534,33897.0,33881.0,1.50411505]
[1625593846779,1.03939534,33897.0,33886.0,3.49103363]
[1625593846895,1.03939534,33897.0,33896.0,0.72172632]
[1625593847017,1.03930605,33899.0,33896.0,0.94433632]
[1625593847255,1.08919857,33902.0,33896.0,0.94433632]
[1625593847498,0.05,33902.0,33896.0,0.94433632]
[1625593847615,0.05,33902.0,33901.0,4.539]
[1625593848576,0.05,33902.0,33901.0,4.54308076]
[1625593848937,0.024,33902.0,33901.0,6.0151696]
[1625593849056,1.03707563,33913.0,33901.0,6.51108884]
[1625593849176,1.03703576,33914.0,33901.0,7.75442253]
[1625593849296,1.03703576,33914.0,33902.0,1.0]
[1625593849419,1.03703576,33914.0,33903.0,0.5]
[1625593849538,1.03703576,33914.0,33903.0,1.76415]
[1625593849659,1.38265675,33918.0,33903.0,1.76415]
[1625593849661,1.38265675,33918.0,33905.0,0.99063421]
[1625593849663,1.03696326,33917.0,33905.0,0.99063421]
[1625593849784,1.03696326,33917.0,33906.0,0.5]
[1625593849901,0.24057544,33921.0,33911.0,0.98922463]
[1625593850019,0.24057544,33921.0,33911.0,1.20660463]
[1625593850138,0.24057544,33921.0,33911.0,0.21738]
[1625593850978,0.24057544,33920.0,33915.0,0.24057544]
[1625593851221,0.24057544,33920.0,33907.0,0.98560043]
[1625593851339,0.24057544,33920.0,33904.0,0.98670767]
[1625593851581,0.24057544,33920.0,33902.0,1.15115895]
[1625593851582,1.52261429,33920.0,33902.0,0.98735133]
[1625593851820,1.52261429,33920.0,33890.0,1.64558555]
[1625593851821,0.48894544,33920.0,33901.0,6.00589493]
[1625593852061,0.48894544,33920.0,33901.0,5.02015088]
[1625593852542,0.48894544,33920.0,33903.0,0.98538338]
[1625593852781,0.48894544,33920.0,33902.0,0.98558576]
[1625593853024,0.24057544,33912.0,33908.0,0.24057544]
[1625593853142,0.57801544,33912.0,33901.0,5.02015088]
[1625593854466,0.24057544,33912.0,33901.0,5.02015088]
[1625593854586,0.24057544,33912.0,33901.0,6.00513613]
[1625593854826,0.24057544,33912.0,33901.0,5.02015088]
[1625593854947,0.24057544,33912.0,33911.0,0.48115088]
[1625593855067,0.24057544,33912.0,33911.0,0.79180088]
[1625593856317,0.24057544,33912.0,33911.0,0.48115088]
[1625593858300,0.24057544,33912.0,33911.0,0.24057544]
[1625593859021,0.48115088,33912.0,33911.0,0.24057544]
[1625593859501,0.24057544,33920.0,33911.0,0.57187544]
[1625593860703,0.24057544,33920.0,33911.0,0.24057544]
[1625593861063,0.48115088,33912.0,33911.0,0.24057544]
[1625593861185,0.80760088,33912.0,33911.0,0.24057544]
[1625593863585,0.48115088,33912.0,33911.0,0.24057544]
[1625593863825,0.24057544,33920.0,33911.0,0.24057544]
[1625593863948,0.24057544,33920.0,33911.0,0.48685544]
[1625593865032,0.24057544,33920.0,33915.0,3.9312]
[1625593867072,0.24057544,33920.0,33919.0,0.48115088]
[1625593867195,0.24057544,33920.0,33919.0,0.77171088]
[1625593867313,1.15777544,33926.0,33919.0,0.77171088]
[1625593867432,0.9172,33926.0,33919.0,0.77171088]
[1625593867796,0.8348,33926.0,33919.0,0.77171088]
[1625593867916,0.8117,33926.0,33919.0,0.77171088]
[1625593868034,0.5498,33926.0,33919.0,0.77171088]
[1625593868155,0.5269,33926.0,33919.0,0.77171088]
[1625593868276,0.5225,33926.0,33919.0,0.77171088]
[1625593869061,0.5225,33926.0,33925.0,0.24057544]
[1625593871041,0.5225,33926.0,33925.0,0.48115088]
[1625593872602,0.5225,33926.0,33925.0,0.24057544]
[1625593872722,0.5225,33926.0,33919.0,0.48115088]
[1625593872845,0.86637,33926.0,33919.0,0.48115088]
[1625593873083,0.48115088,33920.0,33914.0,0.24057544]
[1625593875069,0.24057544,33920.0,33919.0,0.24057544]
[1625593875190,0.76307544,33926.0,33919.0,0.24057544]
[1625593875191,0.76307544,33926.0,33919.0,0.53398544]
[1625593876092,0.76307544,33926.0,33920.0,0.00406647]
[1625593876332,0.76307544,33926.0,33919.0,0.53398544]
[1625593877054,0.76307544,33926.0,33925.0,0.24057544]
[1625593881142,1.00365088,33926.0,33925.0,0.24057544]
[1625593881505,1.00365088,33926.0,33919.0,0.24057544]
[1625593881624,1.28318088,33926.0,33919.0,0.24057544]
[1625593883068,0.24057544,33920.0,33919.0,0.24057544]
[1625593883428,0.24057544,33920.0,33912.0,0.24057544]
[1625593883969,0.24057544,33920.0,33913.0,0.0888]
[1625593884086,0.24057544,33920.0,33912.0,0.32887544]
[1625593884087,0.24057544,33920.0,33912.0,0.24057544]
[1625593884211,0.24057544,33920.0,33918.0,3.7291]
[1625593884331,0.24057544,33920.0,33918.0,3.94992]
[1625593885109,0.24057544,33920.0,33919.0,0.24057544]
[1625593885591,1.24422632,33926.0,33919.0,0.24057544]
[1625593885714,1.24422632,33926.0,33919.0,0.24464138]
[1625593885950,1.24422632,33926.0,33920.0,0.00406584]
[1625593887092,0.24057544,33921.0,33920.0,0.00406584]
[1625593887212,0.47466544,33921.0,33919.0,0.24057544]
[1625593888772,0.47466544,33921.0,33912.0,0.24057544]
[1625593889133,0.24057544,33917.0,33915.0,0.00406688]
[1625593889614,0.24057544,33917.0,33912.0,0.24057544]
[1625593890276,0.24057544,33917.0,33902.0,0.24057544]
[1625593890756,0.24057544,33917.0,33903.0,0.00406135]
[1625593891117,0.48115088,33904.0,33903.0,0.00406135]
[1625593891236,0.69450088,33904.0,33903.0,0.00406135]
[1625593892617,0.48115088,33904.0,33903.0,0.00406135]
[1625593892977,0.48115088,33904.0,33900.0,0.00406738]
[1625593893218,0.24057544,33903.0,33899.0,0.24057544]
[1625593893459,0.24057544,33903.0,33900.0,0.00406743]
[1625593895566,0.24057544,33903.0,33900.0,0.16601287]
[1625593895804,0.24057544,33911.0,33902.0,0.16201178]
[1625593896046,0.24057544,33911.0,33903.0,0.16194167]
[1625593896166,0.24057544,33911.0,33903.0,0.16600842]
[1625593896288,0.24057544,33911.0,33904.0,0.16187947]
[1625593896406,0.24057544,33911.0,33904.0,0.46842947]
[1625593896767,0.24057544,33911.0,33904.0,0.7922664]
[1625593897189,0.24057544,33911.0,33910.0,0.24057544]
[1625593898988,0.24057544,33911.0,33905.0,0.16217099]
[1625593899110,0.24057544,33911.0,33904.0,0.48614151]
[1625593899228,0.24057544,33905.0,33904.0,0.48614151]
[1625593899348,0.24057544,33905.0,33904.0,0.16230458]
[1625593899527,0.24057544,33905.0,33903.0,0.48698289]
[1625593899891,0.24057544,33905.0,33904.0,0.32543817]
[1625593900733,0.24057544,33905.0,33903.0,0.9771319]
[1625593901210,0.24057544,33905.0,33904.0,0.24057544]
[1625593901690,0.24057544,33905.0,33904.0,1.22065296]
[1625593901810,0.24057544,33911.0,33904.0,1.22065296]
[1625593902169,0.24057544,33911.0,33908.0,0.490813]
[1625593902710,0.24057544,33911.0,33910.0,0.49183435]
[1625593903191,0.24057544,33911.0,33910.0,0.73240979]
[1625593903309,0.24057544,33911.0,33910.0,0.96265979]
[1625593903430,0.24057544,33911.0,33910.0,0.47082544]
[1625593903913,0.24057544,33914.0,33910.0,2.60649009]
[1625593904154,0.24057544,33914.0,33913.0,2.13376737]
[1625593904395,0.24057544,33914.0,33913.0,3.44643048]
[1625593904637,0.24057544,33914.0,33913.0,2.13376737]
[1625593905236,0.24057544,33914.0,33913.0,2.37434281]
[1625593905777,0.24057544,33914.0,33913.0,3.69031544]
[1625593906502,0.24057544,33914.0,33913.0,4.34860988]
[1625593907223,0.24057544,33914.0,33913.0,3.03263725]
[1625593908365,0.24057544,33914.0,33913.0,1.64311015]
[1625593908605,0.24057544,33914.0,33911.0,1.15235428]
[1625593908726,1.00021841,33914.0,33910.0,1.15272724]
[1625593909086,0.52029131,33913.0,33909.0,1.15357211]
[1625593909205,0.48115088,33910.0,33909.0,1.15357211]
[1625593909327,0.48115088,33910.0,33908.0,1.15482269]
[1625593911013,0.48115088,33910.0,33909.0,1.1555555]
[1625593911494,0.48115088,33910.0,33909.0,1.4746255]
[1625593911794,0.48115088,33910.0,33909.0,2.79455526]
[1625593912274,0.48115088,33910.0,33909.0,2.79861479]
[1625593912517,0.48115088,33910.0,33909.0,2.79455526]
[1625593913055,0.48115088,33910.0,33909.0,2.79861472]
[1625593913294,0.48115088,33910.0,33909.0,2.79455526]
[1625593913539,0.24057544,33910.0,33909.0,2.79455526]
[1625593913657,0.24057544,33914.0,33909.0,2.79455526]
[1625593913776,0.24057544,33914.0,33909.0,2.79861457]
[1625593913897,0.24057544,33914.0,33913.0,2.46870876]
[1625593914557,0.24057544,33914.0,33913.0,3.94886828]
[1625593914916,0.24057544,33914.0,33913.0,3.9529272]
[1625593915280,0.24057544,33914.0,33913.0,4.43407808]
[1625593917923,0.24057544,33914.0,33913.0,2.95391856]
[1625593918161,0.24057544,33914.0,33913.0,1.63321497]
[1625593918644,0.24057544,33914.0,33913.0,2.95039951]
[1625593919247,0.24057544,33914.0,33913.0,2.95445821]
[1625593919368,0.24057544,33914.0,33913.0,4.43525319]
[1625593920208,0.52027158,33926.0,33913.0,4.43525319]
[1625593920332,0.32826337,33927.0,33913.0,6.07898416]
[1625593920573,2.16120284,33931.0,33924.0,1.14988315]
[1625593920574,0.01526967,33925.0,33924.0,1.14988315]
[1625593920690,0.01526967,33925.0,33924.0,1.38651315]
[1625593920811,0.9479,33931.0,33924.0,1.38651315]
[1625593920812,0.01526903,33926.0,33924.0,1.38651315]
[1625593921050,0.01526903,33926.0,33925.0,1.15103756]
[1625593921170,0.08681912,33928.0,33925.0,1.15103756]
[1625593921292,8.763e-05,33928.0,33927.0,0.72172632]
[1625593921412,0.9479,33931.0,33927.0,0.72172632]
[1625593921531,0.9479,33931.0,33930.0,1.14931061]
[1625593922133,0.24057544,33934.0,33930.0,1.14931061]
[1625593922371,0.99224263,33940.0,33930.0,1.14931061]
[1625593922497,1.21235847,33944.0,33933.0,2.45874791]
[1625593922611,1.17245847,33944.0,33933.0,2.70195791]
[1625593922733,0.93825847,33944.0,33939.0,2.30582399]
[1625593922856,1.13902302,33956.0,33939.0,4.91747198]
[1625593923094,1.38501289,33962.0,33949.0,1.30428499]
[1625593923216,1.38501289,33962.0,33949.0,2.10487499]
[1625593923334,2.42346963,33982.0,33949.0,2.10487499]
[1625593923335,1.6254487,33966.0,33960.0,0.72172632]